Cogmind - Beta 15 @@@ ROGUE MODE // 2025.06.17 @ 20:40:26 Player: KN-OKO Result: Destroyed by 1Y-0W5(R) with Subdweller Machine Gun Performance ------------- Evolutions (0) 0 Regions Visited (2) 400 Robots Destroyed (19) 95 Value Destroyed (474) 474 Prototype IDs (0) 0 Alien Tech Used (0) 0 Bonus (0) 0 TOTAL SCORE: 969 Bonus ------- None Cogmind --------- Core Integrity 0/250 Matter 224/300 Energy 100/100 System Corruption 4% Temperature Cool (0) Movement Treading (160) Location -10/Subcaves Parts ------- > --- POWER (1) -------- (None) > --- PROPULSION (2) --- Light Treads Improved Treads > --- UTILITY (2) ------ Small Storage Unit Makeshift Light Armor Plating > --- WEAPON (2) ------- Light Assault Rifle Heavy Hammer > --- INVENTORY (8) ---- Improved Treads Improved Treads Compact Wheel Large Matter Pod (150) Peak State ------------ > --- POWER ------------ (None) > --- PROPULSION ------- Light Treads Improved Treads > --- UTILITY ---------- Small Storage Unit Makeshift Light Armor Plating > --- WEAPON ----------- Spread Laser Battle Cannon > --- INVENTORY -------- Improved Treads Improved Treads Compact Wheel Large Matter Pod Spread Laser Light Assault Rifle Heavy Hammer [Rating: 13] Favorites ----------- Power Ion Engine Engine Ion Engine Propulsion Improved Treads Treads Improved Treads Utility Small Storage Unit Device Seismic Detector Storage Small Storage Unit Protection Light Armor Plating Weapon Spread Laser Energy Gun Spread Laser Ballistic Gun Light Assault Rifle Ballistic Cannon Battle Cannon Impact Weapon Heavy Hammer Build | -11 -10 -10 ------- Run | Yrd Mat Sub Slots Evolved . | . . . Power . | . . . Propulsion . | . . . Utility . | . . . Weapon . | . . . Parts Attached 21 | 7 7 7 Power 2 | 1 1 . Engine 2 | 1 1 . Core . | . . . Reactor . | . . . Propulsion 5 | 2 2 1 Treads 5 | 2 2 1 Leg . | . . . Wheel . | . . . Hover . | . . . Flight . | . . . Utility 4 | 2 . 2 Device 1 | 1 . . Storage 1 | 1 . . Processor . | . . . Hackware . | . . . Protection 2 | . . 2 Artifact . | . . . Weapon 10 | 2 4 4 Energy Gun 3 | 1 . 2 Energy Cannon . | . . . Ballistic Gun 5 | 1 4 . Ballistic Cannon 1 | . . 1 Launcher . | . . . Special Weapon . | . . . Impact Weapon 1 | . . 1 Slashing Weapon . | . . . Piercing Weapon . | . . . Special Melee Weapon . | . . . Unidentified Prototypes . | . . . Parts Lost 5 | . . 5 Power 1 | . . 1 Propulsion . | . . . Utility 1 | . . 1 Weapon 3 | . . 3 Highest Loss Streak 4 | . . 4 To Critical Strikes . | . . . Average Backups 7 | 4 7 7 Power . | . . . Propulsion 3 | 3 3 3 Utility 1 | . 1 1 Weapon 2 | . 2 2 Tool/Special . | . . . Unused Backups 9 | . 5 4 Power 1 | . 1 . Propulsion 6 | . 3 3 Utility 1 | . . 1 Weapon 1 | . 1 . Tool/Special . | . . . Average Slot Usage (%) 89 | . 100 85 Engine 4 | . 14 . Treads 28 | . 28 28 Device 12 | . 14 12 Storage 14 | . 14 14 Protection 1 | . . 1 Energy Gun 10 | . 5 13 Ballistic Gun 7 | . 22 1 Ballistic Cannon 9 | . . 12 Peak Build Rating 13 | 7 10 13 Average Rating 9 | 5 8 10 On Entrance 5 | . 7 10 Naked Turns . | . . . Heaviest Build 15 | 11 13 15 Greatest Support 46 | 40 46 46 Greatest Overweight (x) . | . . . Average Overweight (x) . | . . . Largest Inventory Capacity 8 | 8 8 8 Average Capacity 7 | 7 8 8 Most Carried 8 | 6 8 8 Average Carried 7 | 4 7 7 Final Capacity 8 | 8 8 8 Final Carried 8 | 6 8 4 Class Distribution -------------------- 100% | Mutant Dominant Class ---------------- Mutant | -10/Materials Mutant | -10/Subcaves Resources | -11 -10 -10 ----------- Run | Yrd Mat Sub Matter Collected 800 | 278 235 287 Remotely . | . . . Salvage Created 639 | 110 273 256 Parts 35 | 4 15 16 Haulers Intercepted . | . . . Recyclers Shooed 2 | . 2 . Parts Field Recycled . | . . . Retrieved Matter . | . . . Parts Self-Destructed 3 | . . 3 Prevented . | . . . Kills | -11 -10 -10 ------- Run | Yrd Mat Sub Combat Hostiles Destroyed 16 | . 10 6 Melee 1 | . . 1 Guns 11 | . 10 1 Cannons 4 | . . 4 Classes Destroyed 6 | 2 2 2 Tunneler 2 | 2 . . Recycler 1 | 1 . . Swarmer 6 | . 6 . Grunt 4 | . 4 . Sentry 1 | . . 1 Subdweller 5 | . . 5 Best Kill Streak 3 | 1 3 2 Combat Bots Only 3 | . 3 2 Max Kills in Single Turn 1 | 1 1 1 Gunslinging . | . . . Exploded . | . . . Melee 1 | . . 1 Uniques/NPCs Destroyed . | . . . Combat | -11 -10 -10 -------- Run | Yrd Mat Sub Hostile Shots Fired 102 | . 49 53 Missed 25 | . 13 12 Hits 77 | . 36 41 Projectile 77 | . 36 41 Critical Strikes 3 | . 1 2 Damage Taken 1380 | . 366 1014 Core 262 | . 90 172 Absorbed by Shields . | . . . Core Remaining (%) 100 | 100 . . Volleys Fired 77 | 8 33 36 Largest 2 | 2 2 2 Hottest 98 | 60 60 98 Shots Fired 145 | 16 65 64 Gun 115 | 16 65 34 Cannon 30 | . . 30 Launcher . | . . . Special . | . . . Kinetic 108 | 8 63 37 Thermal 37 | 8 2 27 Explosive . | . . . Electromagnetic . | . . . Robot Hit Streak 20 | 7 7 20 Robot Miss Streak 4 | 1 4 3 Penetration Max . | . . . Secondary Targets 1 | . 1 . Max Gunslinging Chain 1 | . 1 . Shots Hit Robots 114 | 13 43 58 Core Hits 68 | 6 21 41 Critical Kills . | . . . Critical Parts Destroyed 1 | . 1 . Critical Strikes 2 | . 1 1 Destroy 1 | . 1 . Smash 1 | . . 1 Melee Attacks 9 | . . 9 Impact 9 | . . 9 Slashing . | . . . Piercing . | . . . Sneak Attacks . | . . . Combat Hostiles . | . . . Follow-up Attacks . | . . . Damage Inflicted 1617 | 126 387 1104 Guns 1067 | 126 380 561 Cannons 362 | . . 362 Explosions . | . . . Melee 181 | . . 181 Ramming 7 | . 7 . Kinetic 820 | 42 360 418 Thermal 609 | 84 20 505 Explosive . | . . . Electromagnetic . | . . . Impact 181 | . . 181 Slashing . | . . . Piercing . | . . . Highest Corruption 4 | . 4 4 Average Corruption 3 | . 3 4 Corruption Purged . | . . . Corruption Blocked . | . . . Effects 37 | . 8 29 Message Errors 8 | . 3 5 Matter Fused 13 | . 2 11 Heat Flow Errors 3 | . . 3 Energy Discharges 5 | . 1 4 Data Loss (minor) 2 | . . 2 Data Loss (major) 3 | . 1 2 Misfires 2 | . . 2 Weapon Failures 1 | . 1 . Overload Shots . | . . . Overflow Damage . | . . . Projectiles . | . . . Explosions . | . . . Melee . | . . . Knockbacks 4 | . . 4 Impact 1 | . . 1 Kinetic 3 | . . 3 Secondary . | . . . Self-Inflicted Damage . | . . . Shots . | . . . Rammed 4 | . 4 . Targets Rammed 4 | . 4 . Kicked . | . . . Crushed . | . . . Highest Temperature 251 | 40 25 251 Average Temperature 37 | 20 11 80 Received Heat Transfer 219 | . 111 108 Siege Activations . | . . . Martial Activations . | . . . Shielding Activations . | . . . Robots Disrupted . | . . . Combat Hostiles . | . . . Robots Corrupted . | . . . Combat Hostiles . | . . . Parts Fried . | . . . Impact Corruptions . | . . . Robots Melted . | . . . Combat Hostiles . | . . . Parts Melted . | . . . Heat Transferred 875 | 200 50 625 Parts Sabotaged . | . . . Parts Stolen . | . . . Parts Stripped . | . . . Power Chain Reactions . | . . . Alert | -11 -10 -10 ------- Run | Yrd Mat Sub Maximum Alert Level . | . . . Low Security (%) 100 | 100 100 . Level 1 . | . . . Level 2 . | . . . Level 3 . | . . . Level 4 . | . . . Level 5 . | . . . High Security . | . . . Max Security . | . . . Peak Influence 177 | 5 177 . Initial . | . . . Average 47 | . 58 . Influence Increases 330 | 15 295 20 Destroy 0b10 Robot/C 220 | . 200 20 Destroy 0b10 Robot/NC 20 | 15 5 . Destroy Leader 40 | . 40 . Successful Hack 5 | . 5 . Partial Spotted 15 | . 15 . Lose Combat Pursuer 30 | . 30 . Influence Decreases 330 | 15 169 146 Entered New Map 62 | . . 62 Time Decay 258 | 15 169 74 Lost Part 10 | . . 10 Squads Dispatched 2 | . 2 . Investigation . | . . . Extermination . | . . . Reinforcement 2 | . 2 . Assault . | . . . Garrison . | . . . Intercept . | . . . Searches Triggered . | . . . Construction Impeded . | . . . Haulers Reinforced . | . . . Active Scanning Responses . | . . . Cargo Convoy Interrupts . | . . . Stealth | -11 -10 -10 --------- Run | Yrd Mat Sub Distress Signals 1 | . 1 . Communications Jammed . | . . . Distress Signals . | . . . Times Spotted 26 | . 18 8 Peak Tracking Total 4 | . 4 3 Tactical Retreats 2 | . 2 . Traps | -11 -10 -10 ------- Run | Yrd Mat Sub Traps Triggered 4 | . 2 2 Indirectly . | . . . Trap Hack Attempts . | . . . Triggered . | . . . Disarmed . | . . . Reprogrammed . | . . . Reused . | . . . Traps Extracted . | . . . Installed . | . . . Triggered . | . . . Machines | -11 -10 -10 ---------- Run | Yrd Mat Sub Machines Disabled . | . . . Max in Single Turn . | . . . Machines Repaired . | . . . Machines Dismantled . | . . . Machines Sabotaged . | . . . Overloaded Fab Kills . | . . . Hacking | -11 -10 -10 --------- Run | Yrd Mat Sub Machines Accessed 2 | . 1 1 Terminals 1 | . 1 . Fabricators . | . . . Repair Stations . | . . . Recycling Units . | . . . Scanalyzers . | . . . Garrison Access . | . . . Total Hacks 3 | . 2 1 Successful 2 | . 1 1 Failed 1 | . 1 . Catastrophic . | . . . Database Lockouts . | . . . Manual . | . . . Terminals 2 | . 2 . Fabricators . | . . . Repair Stations . | . . . Recycling Units . | . . . Scanalyzers . | . . . Garrison Access . | . . . Terminal Hacks 2 | . 1 1 Record 1 | . . 1 Zone Layout 1 | . 1 . Fabricator Hacks . | . . . Repair Station Hacks . | . . . Recycling Unit Hacks . | . . . Scanalyzer . | . . . Garrison Access Hacks . | . . . Unauthorized Hacks . | . . . Terminals . | . . . Fabricators . | . . . Repair Stations . | . . . Recycling Units . | . . . Scanalyzers . | . . . Garrison Access . | . . . Data Cores Recovered . | . . . Used . | . . . Hacking Detections 1 | . 1 . Full Trace Events . | . . . Feedback Events . | . . . Feedback Blocked . | . . . Robot Schematics Acquired . | . . . Robots Built . | . . . Authchips . | . . . Time . | . . . Total Robot Build Rating . | . . . Part Schematics Acquired . | . . . Parts Built . | . . . Authchips . | . . . Time . | . . . Total Part Build Rating . | . . . Parts Repaired . | . . . Time . | . . . Parts Recycled . | . . . Recycled Matter . | . . . Retrieved Matter . | . . . Retrieved Components . | . . . Parts Scanalyzed . | . . . Part Schematics Acquired . | . . . Parts Damaged . | . . . Bothacking | -11 -10 -10 ------------ Run | Yrd Mat Sub Used RIF Installer . | . . . Robots Hacked . | . . . Non-combat . | . . . Combat . | . . . Robot Hacks Applied . | . . . Relay Couplers Released . | . . . Fabnet Peak Effective % . | . . . Robots Rewired . | . . . Allies Hacked . | . . . Hacks Repelled . | . . . Allies | -11 -10 -10 -------- Run | Yrd Mat Sub Total Allies . | . . . Largest Group . | . . . Highest-Rated Group . | . . . Highest-Rated Ally . | . . . Total Orders . | . . . Ally Attacks . | . . . Total Damage . | . . . Kills . | . . . Allies Corrupted . | . . . Allies Melted . | . . . Intel | -11 -10 -10 ------- Run | Yrd Mat Sub Active Infowar (turns) 2099 | 14 648 1437 Seismic 2099 | 14 648 1437 Robot Analysis Total . | . . . Derelict Logs Recovered . | . . . Drone Launches . | . . . Drone Recoveries . | . . . Exploration | -11 -10 -10 ------------- Run | Yrd Mat Sub Turns Passed 2404 | 149 648 1607 Spaces Moved 1276 | 70 322 884 Core 4 | 4 . . Treads 1272 | 66 322 884 Legs . | . . . Wheels . | . . . Hover . | . . . Flight . | . . . Fastest Speed 50 | 50 160 160 Average Speed 159 | 153 160 160 Slowest Speed 160 | 160 160 160 Overloaded Moves . | . . . Propulsion Burnouts . | . . . Robots Hopped . | . . . Potential Cave-ins . | . . . Cave-ins Triggered . | . . . Exploration Rate (%) 45 | 5 57 74 Regions Visited 2 Branch Regions 1 Pre-discovered Areas . | . . . Known Exits Taken . | . . . Unknown Exits Taken 2 | 1 1 . Scrap Searched 12 | . . 12 Spaces Dug . | . . . Terrain Destroyed . | . . . Melee . | . . . Projectile . | . . . AOE . | . . . Terrain Rammed . | . . . Walls Destroyed . | . . . Machines Disabled . | . . . Actions | -11 -10 -10 --------- Run | Yrd Mat Sub Total 1495 | 94 406 995 Wait 71 | 3 16 52 Move 1274 | 69 321 884 Hop . | . . . Pick Up 16 | 7 8 1 Fast Attach 7 | 6 . 1 Attach 6 | 1 1 4 Detach 1 | . 1 . Swap 12 | . 6 6 Drop 14 | . 12 2 Fire 77 | 8 33 36 Melee 9 | . . 9 Ram . | . . . Kick . | . . . Crush 4 | . 4 . Escape Stasis . | . . . Rewire 4 | . 4 . Trap . | . . . Miscellaneous . | . . . Route ------- -11/Scrapyard -10/Materials (discovered 3 exits: [*Mat x2] / *Sub) -10/Subcaves (discovered 2 exits: [*Mat x2]) History --------- Turn | Location | Event 5 | -11/Scrapyard | Discovered new exit (range 16) 150 | -11/Scrapyard | Entered Materials 324 | -10/Materials | Build established: Mutant 375 | -10/Materials | Discovered new exit (range 8) 639 | -10/Materials | Discovered new exit (range 7) 782 | -10/Materials | Discovered new exit (range 8) 798 | -10/Materials | Entered Subcaves 858 | -10/Subcaves | Disturbed a concealed Subdweller 1082 | -10/Subcaves | Core integrity fell below 50% 1352 | -10/Subcaves | Visited Clippyterm 1530 | -10/Subcaves | Discovered new exit (range 11) 1539 | -10/Subcaves | Curiously followed by a Cobbler waking with a query about "LVR3C" 2192 | -10/Subcaves | Discovered new exit (range 9) 2307 | -10/Subcaves | Shifting Twisted Machinery released Hvy. Riot Gun 2323 | -10/Subcaves | Shifting Twisted Machinery released Mak. Light Armor Plating 2395 | -10/Subcaves | Core integrity fell below 20% 2405 | -10/Subcaves | Destroyed by 1Y-0W5(R) with Subdweller Machine Gun Last Messages --------------- 02235_ System corrupted: Heat flow error (+153). 02236_ Unknown Device fries itself beyond repair. 02237_ Acquired 3 matter. 02240_ Acquired 17 matter. 02281_ System corrupted: Energy discharge (-27). 02301_ System corrupted: Heat flow error (+294). Hvy. Riot Gun falls loose from the Twisted Machinery. Mak. Light Armor Plating falls loose from the Twisted Machinery. 02334_ Dropped Lgt. Armor Plating. 02334_ Acquired Mak. Light Armor Plating. 02356_ Seismic Detector destroyed. 02367_ 1Y-0W5(R) knocked back. 02374_ Battle Cannon destroyed. 02376_ Spread Laser destroyed. 02378_ HX-0J0(R) destroyed. 02384_ 1Y-0W5(R) knocked back. 02389_ 1Y-0W5(R) suffers critical hit (Smash). 02399_ Spread Laser destroyed. 02402_ 1Y-0W5(R) affixes Scrap Shield Fragment to Scrap Shield. 02405_ System corrupted: Matter fused (-6). Map ----- +----------------------------------------------------+ | | | ?????????????????????????????????????????????????? | | ?????????????????????????????????????????????????? | | ?????????????????????????????????????????????????? | | ?????????????????????????????????????????????????? | | ?????????????????????????????????????????????????? | | ?????????????????????????????????????????????????? | | ?????????????????????????????????????????????????? | | ?????????????????????????????????????????????????? | | ?????????????????????????????????????????????????? | | ?????????????????????????????????????????????????? | | ?????????????????????????????????????????????????? | | ?????????????????????????????????????????????????? | | ?????????????????????????????????????????????????? | | ?????????????????????????????????????????????????? | | ?????????????????????????????????????????????????? | | ?#########???????????????????????????????????????? | | ## ## ###???????????????????##????????????????? | | #??????????????????? ##???????????????? | | ### # # #??????????????###? #???????????????? | | #?###### #??????????????# ## #???????????????? | | #??????# ###???????????### #???????????????? | | ????### ## ##???#######" ##??????????????? | | #????# ### ##### """ ! # # ##?????????? | | ##????## ### " "R"""* % "#????????? | | #??????# ###" "@ %R% "#????????? | | ???????###%# ! !&## "#????????? | | ?????????##["##" ## ####??? ## " ????????? | | ??????????## ########## #???????? #??????????????? | | ???????????# #???????###????????????????????????? | | ??????????# #??????????????????????????????????? | | ????????? ##??????????????????????????????????? | | ???????# ##???????????????????????????????????? | | ???????# ?????????????????????????????????????? | | ???????# ?????????????????????????????????????? | | ???????## ?????????????????????????????????????? | | ????????## ?????????????????????????????????????? | | ?????????# ?####????????????????????????????????? | | ?????????# ## ###??????????????????????????????? | | ????????## ##?????????????????????????????? | | ???????## ##????????????????????????????? | | ???????# #????????????????????????????? | | ???????# ###????????????????????????????? | | ???????## ####????????????????????????????? | | ????????## ## ##??????????????????????????? | | ?????????## #" ##?????????????????????????? | | ?????????### ### ##????????????????????????? | | ????????## ### """ ##???????????????????????? | | ??####### "" " " #???????????????????????? | | ??#[%#[&# ##""""""" ##???????????????????????? | +----------------------------------------------------+ Best States ------------- Heat Dissipation 25 Energy Generation 10 Energy Capacity 250 Matter Stores 300 Matter Capacity 300 Sight Range 16 Terrain Scan Density 10 Armor Coverage 150 Evasion (%) 40 Recoil Reduction 2 Item Schematics ----------------- None Robot Schematics ------------------ None Fabricated ------------ Nothing Repaired ---------- Nothing Alien Tech Used ----------------- None Achievements -------------- None Challenges ------------ None Game ------ Seed PhaseShadeDrive Manual? 0 Play Time 00:15:06 Cumulative 498.9 hours Start 2025.06.17 @ 20:31:01 End 2025.06.17 @ 20:40:26 Sessions 1 Manual Loads 0 Difficulty Rogue Special Mode None Game No. 344 Rogue 344 Adventurer 0 Explorer 0 Win Type - Total 46 Types 39/0/5/2/0/0/0/0/0/0 Lore% 83 Gallery% 79 Achievement% 72 Wizard Run 0 Options --------- Layout 0 ASCII 0 Keyboard 1 Movement Numpad Keybinds 0 Fullscreen 2 Font 24/Tamsyn Map View 76x50 Zoom Use 0% Tactical HUD 1 Map Filters NONE Filters NONE Steam 1 RUN: 4a349921-53cb-413d-accc-9119341b3557